fUSD/lending_fUSD_20250930
["ID","MTS","AMOUNT","RATE_DAILY","PERIOD"]
[388556110,1759240325102,-1506.46,0.0002,2]
[388556111,1759240325112,-1892.16,0.0002,2]
[388556112,1759240325122,-1813.32,0.0002,2]
[388556113,1759240325132,-500.0,0.0002,2]
[388556114,1759240325142,-500.0,0.0002,2]
[388556115,1759240325152,-500.0,0.0002,2]
[388556116,1759240325162,-554.41,0.0002,2]
[388556117,1759240325172,-500.0,0.0002,2]
[388556118,1759240325182,-500.0,0.0002,2]
[388556119,1759240325192,-500.0,0.0002,2]
[388556120,1759240325201,-520.67216985,0.0002,2]
[388556121,1759240325210,-500.0,0.0002,2]
[388556122,1759240325220,-1125.41,0.0002,2]
[388556123,1759240325229,-500.0,0.0002,2]
[388556124,1759240325239,-451.50575001,0.0002,2]
[388556125,1759240325249,-500.0,0.0002,2]
[388556126,1759240325263,-819.5,0.0002,2]
[388556127,1759240325273,-2802.89,0.0002,2]
[388556128,1759240325283,-500.0,0.0002,2]
[388556129,1759240325293,-1040.32,0.0002,2]
[388556130,1759240325302,-1580.78,0.0002,2]
[388556131,1759240325314,-500.0,0.0002,2]
[388556132,1759240325324,-500.0,0.0002,2]
[388556133,1759240325335,-500.0,0.0002,2]
[388556134,1759240325345,-564.03718892,0.0002,2]
[388556135,1759240325355,-500.0,0.0002,2]
[388556136,1759240325365,-1936.29,0.0002,2]
[388556137,1759240325375,-500.0,0.0002,2]
[388556138,1759240325386,-762.14,0.0002,2]
[388556139,1759240325395,-500.0,0.0002,2]
[388556140,1759240325405,-517.44,0.0002,2]
[388556141,1759240325415,-804.01,0.0002,2]
[388556142,1759240325425,-500.0,0.0002,2]
[388556143,1759240325435,-500.0,0.0002,2]
[388556144,1759240325445,-862.02,0.0002,2]
[388556145,1759240325455,-500.0,0.0002,2]
[388556146,1759240325465,-500.0,0.0002,2]
[388556147,1759240325475,-734.2,0.0002,2]
[388556148,1759240325485,-2536.15,0.0002,2]
[388556149,1759240325495,-866.59,0.0002,2]
[388556150,1759240325504,-835.4,0.0002,2]
[388556151,1759240325514,-718.03,0.0002,2]
[388556152,1759240325524,-1365.92,0.0002,2]
[388556153,1759240325534,-500.0,0.0002,2]
[388556154,1759240325544,-819.73,0.0002,2]
[388556155,1759240325555,-500.0,0.0002,2]
[388556156,1759240325564,-500.0,0.0002,2]
[388556157,1759240325575,-906.15,0.0002,2]
[388556158,1759240325586,-716.83,0.0002,2]
[388556159,1759240325596,-500.0,0.0002,2]
[388556160,1759240325606,-500.0,0.0002,2]
[388556161,1759240325616,-1159.21,0.0002,2]
[388556162,1759240325626,-500.0,0.0002,2]
[388556163,1759240325635,-500.0,0.0002,2]
[388556164,1759240325645,-500.0,0.0002,2]
[388556165,1759240325655,-500.0,0.0002,2]
[388556166,1759240325665,-500.0,0.0002,2]
[388556167,1759240325675,-500.0,0.0002,2]
[388556168,1759240325684,-500.0,0.0002,2]
[388556169,1759240325694,-745.58,0.0002,2]
[388556170,1759240325705,-500.0,0.0002,2]
[388556171,1759240325714,-500.0,0.0002,2]
[388556172,1759240325723,-1006.35,0.0002,2]
[388556173,1759240325733,-500.0,0.0002,2]
[388556174,1759240325743,-1193.9,0.0002,2]
[388556175,1759240325752,-500.0,0.0002,2]
[388556176,1759240325762,-500.0,0.0002,2]
[388556177,1759240325772,-843.81,0.0002,2]
[388556178,1759240325782,-500.0,0.0002,2]
[388556179,1759240325792,-500.0,0.0002,2]
[388556180,1759240325802,-500.0,0.0002,2]
[388556181,1759240325812,-500.0,0.0002,2]
[388556182,1759240325822,-500.0,0.0002,2]
[388556183,1759240325836,-787.49,0.0002,2]
[388556184,1759240325845,-1328.48,0.0002,2]
[388556185,1759240325855,-500.0,0.0002,2]
[388556186,1759240325864,-595.3,0.0002,2]
[388556187,1759240325874,-561.38,0.0002,2]
[388556188,1759240325884,-500.0,0.0002,2]
[388556189,1759240325894,-2987.59,0.0002,2]
[388556190,1759240325904,-612.1,0.0002,2]
[388556191,1759240325914,-500.0,0.0002,2]
[388556192,1759240325924,-538.01,0.0002,2]
[388556193,1759240325934,-500.0,0.0002,2]
[388556194,1759240325944,-500.0,0.0002,2]
[388556195,1759240325955,-528.03,0.0002,2]
[388556196,1759240325965,-705.1,0.0002,2]
[388556197,1759240325975,-500.0,0.0002,2]
[388556198,1759240325985,-429.90161943,0.0002,2]
[388556199,1759240325995,-500.0,0.0002,2]
[388556200,1759240326006,-751.61,0.0002,2]
[388556201,1759240326016,-519.96,0.0002,2]
[388556202,1759240326518,-500.0,0.0002,2]
[388556203,1759240326528,-521.64,0.0002,2]
[388556204,1759240326537,-500.0,0.0002,2]
[388556205,1759240326547,-662.66,0.0002,2]
[388556206,1759240326557,-500.0,0.0002,2]
[388556207,1759240326566,-500.0,0.0002,2]
[388556208,1759240326575,-500.0,0.0002,2]
[388556209,1759240326586,-1191.76,0.0002,2]
[388556210,1759240326596,-500.0,0.0002,2]
[388556211,1759240326606,-830.02,0.0002,2]
[388556212,1759240326616,-500.0,0.0002,2]
[388556213,1759240326625,-500.0,0.0002,2]
[388556214,1759240326634,-1407.81,0.0002,2]
[388556215,1759240326644,-500.0,0.0002,2]
[388556216,1759240326654,-1632.14,0.0002,2]
[388556217,1759240326663,-2537.43,0.0002,2]
[388556218,1759240326673,-2431.7,0.0002,2]
[388556219,1759240326682,-500.0,0.0002,2]
[388556220,1759240326692,-500.0,0.0002,2]
[388556221,1759240326702,-500.0,0.0002,2]
[388556222,1759240326711,-500.0,0.0002,2]
[388556223,1759240326721,-500.0,0.0002,2]
[388556224,1759240326730,-1277.63,0.0002,2]
[388556225,1759240326740,-696.93,0.0002,2]
[388556226,1759240326750,-890.61,0.0002,2]
[388556227,1759240326760,-500.0,0.0002,2]
[388556228,1759240326770,-500.0,0.0002,2]
[388556229,1759240326780,-500.0,0.0002,2]
[388556230,1759240326789,-500.0,0.0002,2]
[388556231,1759240326799,-500.0,0.0002,2]
[388556232,1759240326809,-500.0,0.0002,2]
[388556233,1759240326818,-500.0,0.0002,2]
[388556234,1759240326828,-500.0,0.0002,2]
[388556235,1759240326841,-500.0,0.0002,2]
[388556236,1759240326852,-1546.9,0.0002,2]
[388556237,1759240326861,-500.0,0.0002,2]
[388556238,1759240326870,-500.0,0.0002,2]
[388556239,1759240326880,-500.0,0.0002,2]
[388556240,1759240326889,-767.27,0.0002,2]
[388556241,1759240326899,-500.0,0.0002,2]
[388556242,1759240326908,-3185.15,0.0002,2]
[388556243,1759240326918,-3256.72,0.0002,2]
[388556244,1759240326927,-1019.43,0.0002,2]
[388556245,1759240326936,-628.31,0.0002,2]
[388556246,1759240326946,-228.2351966,0.0002,2]
[388556247,1759240326955,-500.0,0.0002,2]
[388556248,1759240326964,-599.93,0.0002,2]
[388556249,1759240326974,-500.0,0.0002,2]
[388556250,1759240326983,-573.86,0.0002,2]
[388556251,1759240326994,-500.0,0.0002,2]
[388556252,1759240327003,-150.0,0.0002,2]
[388556253,1759240327013,-500.0,0.0002,2]
[388556254,1759240327023,-500.0,0.0002,2]
[388556255,1759240327032,-500.0,0.0002,2]
[388556256,1759240327042,-500.0,0.0002,2]
[388556257,1759240327052,-500.0,0.0002,2]
[388556258,1759240327061,-500.0,0.0002,2]
[388556259,1759240327071,-500.0,0.0002,2]
[388556260,1759240327081,-500.0,0.0002,2]
[388556261,1759240327092,-1643.07,0.0002,2]
[388556262,1759240327102,-1654.09,0.0002,2]
[388556263,1759240327111,-1125.03,0.0002,2]
[388556264,1759240327126,-500.0,0.0002,2]
[388556265,1759240327136,-500.0,0.0002,2]
[388556266,1759240327146,-500.0,0.0002,2]
[388556267,1759240327155,-615.91455477,0.0002,2]
[388556268,1759240327165,-500.0,0.0002,2]
[388556269,1759240327175,-500.0,0.0002,2]
[388556270,1759240327186,-570.69,0.0002,2]
[388556271,1759240327196,-500.0,0.0002,2]
[388556272,1759240327206,-500.0,0.0002,2]
[388556273,1759240327216,-780.09,0.0002,2]
[388556274,1759240327226,-645.06,0.0002,2]
[388556275,1759240327236,-2221.26,0.0002,2]
[388556276,1759240327247,-1429.66,0.0002,2]
[388556277,1759240327259,-1147.27,0.0002,2]
[388556278,1759240327269,-225.83968752,0.0002,2]
[388556279,1759240327279,-500.0,0.0002,2]
[388556280,1759240327289,-500.0,0.0002,2]
[388556281,1759240327298,-677.04,0.0002,2]
[388556282,1759240327308,-1422.36,0.0002,2]
[388556283,1759240327318,-500.0,0.0002,2]
[388556284,1759240327329,-2005.31,0.0002,2]
[388556285,1759240327344,-861.63,0.0002,2]
[388556286,1759240327354,-825.73,0.0002,2]
[388556287,1759240327363,-500.0,0.0002,2]
[388556288,1759240327374,-980.73,0.0002,2]
[388556289,1759240327384,-500.0,0.0002,2]
[388556290,1759240327394,-1482.77,0.0002,2]
[388556291,1759240327404,-503.95,0.0002,2]
[388556292,1759240327414,-500.0,0.0002,2]
[388556293,1759240327425,-500.0,0.0002,2]
[388556294,1759240327435,-500.0,0.0002,2]
[388556295,1759240327444,-500.0,0.0002,2]
[388556296,1759240327454,-500.0,0.0002,2]
[388556297,1759240327465,-500.0,0.0002,2]
[388556298,1759240327475,-500.0,0.0002,2]
[388556299,1759240327486,-500.0,0.0002,2]
[388556300,1759240327496,-500.0,0.0002,2]
[388556301,1759240327507,-1642.32,0.0002,2]
[388556302,1759240327518,-555.2,0.0002,2]
[388556303,1759240327529,-500.0,0.0002,2]
[388556304,1759240327538,-500.0,0.0002,2]
[388556305,1759240327548,-519.38,0.0002,2]
[388556306,1759240327558,-500.0,0.0002,2]
[388556307,1759240327568,-502.53,0.0002,2]
[388556308,1759240327578,-500.0,0.0002,2]
[388556309,1759240327589,-500.0,0.0002,2]
[388556310,1759240327599,-500.0,0.0002,2]
[388556311,1759240327610,-169.36189164,0.0002,2]
[388556312,1759240327620,-1407.34,0.0002,2]
[388556313,1759240327630,-1006.6,0.0002,2]
[388556314,1759240327640,-500.0,0.0002,2]
[388556315,1759240327650,-500.0,0.0002,2]
[388556316,1759240327660,-500.0,0.0002,2]
[388556317,1759240327672,-984.15,0.0002,2]
[388556318,1759240327683,-500.0,0.0002,2]
[388556319,1759240327695,-500.0,0.0002,2]
[388556320,1759240327705,-500.0,0.0002,2]
[388556321,1759240327715,-500.0,0.0002,2]
[388556322,1759240327725,-500.0,0.0002,2]
[388556323,1759240327735,-500.0,0.0002,2]
[388556324,1759240327745,-500.0,0.0002,2]
[388556325,1759240327755,-500.0,0.0002,2]
[388556326,1759240327766,-500.0,0.0002,2]
[388556327,1759240327776,-500.0,0.0002,2]
[388556328,1759240327786,-500.0,0.0002,2]
[388556329,1759240327796,-500.0,0.0002,2]
[388556330,1759240327806,-500.0,0.0002,2]
[388556331,1759240327817,-500.0,0.0002,2]
[388556332,1759240327827,-500.0,0.0002,2]
[388556333,1759240327838,-500.0,0.0002,2]
[388556334,1759240327848,-500.0,0.0002,2]
[388556335,1759240327859,-500.0,0.0002,2]
[388556336,1759240327869,-500.0,0.0002,2]
[388556337,1759240327879,-1977.24,0.0002,2]
[388556338,1759240327889,-500.0,0.0002,2]
[388556339,1759240327899,-500.0,0.0002,2]
[388556340,1759240327909,-500.0,0.0002,2]
[388556341,1759240327919,-517.59,0.0002,2]
[388556342,1759240327929,-2503.43,0.0002,2]
[388556343,1759240327939,-500.0,0.0002,2]
[388556344,1759240327950,-1137.08,0.0002,2]
[388556345,1759240327959,-1760.32,0.0002,2]
[388556346,1759240327969,-500.0,0.0002,2]
[388556347,1759240327979,-2399.12,0.0002,2]
[388556348,1759240327989,-751.48,0.0002,2]
[388556349,1759240327999,-500.0,0.0002,2]
[388556350,1759240328010,-1693.84,0.0002,2]
[388556351,1759240328020,-900.53,0.0002,2]
[388556352,1759240328030,-853.5,0.0002,2]
[388556353,1759240328040,-500.0,0.0002,2]
[388556354,1759240328050,-500.0,0.0002,2]
[388556355,1759240328060,-500.0,0.0002,2]
[388556356,1759240328076,-2800.4,0.0002,2]
[388556357,1759240328088,-3710.9,0.0002,2]
[388556358,1759240328099,-500.0,0.0002,2]
[388556359,1759240328110,-500.0,0.0002,2]
[388556360,1759240328120,-500.0,0.0002,2]
[388556361,1759240328131,-500.0,0.0002,2]
[388556362,1759240328142,-780.07,0.0002,2]
[388556363,1759240328153,-792.06,0.0002,2]
[388556364,1759240328164,-1076.9,0.0002,2]
[388556365,1759240328175,-1334.02,0.0002,2]
[388556366,1759240328186,-1098.61,0.0002,2]
[388556367,1759240328196,-500.0,0.0002,2]
[388556368,1759240328207,-544.22,0.0002,2]
[388556369,1759240328217,-500.0,0.0002,2]
[388556370,1759240328227,-500.0,0.0002,2]
[388556371,1759240328238,-714.53,0.0002,2]
[388556372,1759240328248,-3350.21,0.0002,2]
[388556373,1759240328261,-500.0,0.0002,2]
[388556374,1759240328272,-500.0,0.0002,2]
[388556375,1759240328282,-500.0,0.0002,2]
[388556376,1759240328292,-705.59,0.0002,2]
[388556377,1759240328303,-840.44,0.0002,2]
[388556378,1759240328313,-1195.98,0.0002,2]
[388556379,1759240328323,-2690.42,0.0002,2]
[388556380,1759240328336,-571.65,0.0002,2]
[388556381,1759240328347,-500.0,0.0002,2]
[388556382,1759240328359,-500.0,0.0002,2]
[388556383,1759240328374,-500.0,0.0002,2]
[388556384,1759240328384,-500.0,0.0002,2]
[388556385,1759240328395,-500.0,0.0002,2]
[388556386,1759240328405,-500.0,0.0002,2]
[388556387,1759240328415,-1726.29,0.0002,2]
[388556388,1759240328426,-500.0,0.0002,2]
[388556389,1759240328437,-500.0,0.0002,2]
[388556390,1759240328447,-500.0,0.0002,2]
[388556391,1759240328457,-5086.08,0.0002,2]
[388556392,1759240328467,-500.0,0.0002,2]
[388556393,1759240328478,-500.0,0.0002,2]
[388556394,1759240328488,-500.0,0.0002,2]
[388556395,1759240328498,-500.0,0.0002,2]
[388556396,1759240328508,-4456.96,0.0002,2]
[388556397,1759240328518,-500.0,0.0002,2]
[388556398,1759240328528,-621.6,0.0002,2]
[388556399,1759240328539,-500.0,0.0002,2]
[388556400,1759240328549,-5163.16,0.0002,2]
[388556401,1759240328560,-500.0,0.0002,2]
[388556402,1759240328571,-500.0,0.0002,2]
[388556403,1759240328581,-500.0,0.0002,2]
[388556404,1759240328593,-500.0,0.0002,2]
[388556405,1759240328604,-1240.5,0.0002,2]
[388556406,1759240328618,-1599.6,0.0002,2]
[388556407,1759240328628,-5656.93,0.0002,2]
[388556408,1759240328638,-230.09245311,0.0002,2]
[388556409,1759240328648,-1771.49,0.0002,2]
[388556410,1759240328658,-571.61,0.0002,2]
[388556411,1759240328668,-596.77,0.0002,2]
[388556412,1759240328678,-500.0,0.0002,2]
[388556413,1759240328688,-3534.18,0.0002,2]
[388556414,1759240328698,-500.0,0.0002,2]
[388556415,1759240328708,-500.0,0.0002,2]
[388556416,1759240328718,-500.0,0.0002,2]
[388556417,1759240328728,-500.0,0.0002,2]
[388556418,1759240328738,-683.71,0.0002,2]
[388556419,1759240328747,-500.0,0.0002,2]
[388556420,1759240328757,-500.0,0.0002,2]
[388556421,1759240328770,-1725.05,0.0002,2]
[388556422,1759240328781,-500.0,0.0002,2]
[388556423,1759240328791,-2792.01,0.0002,2]
[388556424,1759240328801,-1784.28,0.0002,2]
[388556425,1759240328811,-500.0,0.0002,2]
[388556426,1759240328821,-773.33,0.0002,2]
[388556427,1759240328831,-1417.17,0.0002,2]
[388556428,1759240328845,-500.0,0.0002,2]
[388556429,1759240328856,-789.35,0.0002,2]
[388556430,1759240328866,-500.0,0.0002,2]
[388556431,1759240328876,-3388.02,0.0002,2]
[388556432,1759240328886,-586.61,0.0002,2]
[388556433,1759240328896,-500.0,0.0002,2]
[388556434,1759240328907,-1267.03,0.0002,2]
[388556435,1759240328917,-500.0,0.0002,2]
[388556436,1759240328927,-982.97,0.0002,2]
[388556437,1759240328937,-500.0,0.0002,2]
[388556438,1759240328947,-500.0,0.0002,2]
[388556439,1759240328956,-2314.25,0.0002,2]
[388556440,1759240328966,-500.0,0.0002,2]
[388556441,1759240328976,-1218.74,0.0002,2]
[388556442,1759240328988,-621.59,0.0002,2]
[388556443,1759240328998,-500.0,0.0002,2]
[388556444,1759240329010,-608.6,0.0002,2]
[388556445,1759240329020,-2098.99,0.0002,2]
[388556446,1759240329030,-500.0,0.0002,2]
[388556447,1759240329039,-3224.35,0.0002,2]
[388556448,1759240329049,-1286.78,0.0002,2]
[388556449,1759240329301,-2187.82,0.0002,2]
[388556450,1759240329311,-500.0,0.0002,2]
[388556451,1759240329321,-1729.31,0.0002,2]
[388556452,1759240329331,-1087.68,0.0002,2]
[388556453,1759240329342,-500.0,0.0002,2]
[388556454,1759240329351,-1432.91,0.0002,2]
[388556455,1759240329361,-1339.37,0.0002,2]
[388556456,1759240329376,-4935.23,0.0002,2]
[388556457,1759240329391,-500.0,0.0002,2]
[388556458,1759240329401,-6485.87,0.0002,2]
[388556459,1759240329411,-982.28,0.0002,2]
[388556460,1759240329421,-977.34,0.0002,2]
[388556461,1759240329431,-500.0,0.0002,2]
[388556462,1759240329449,-500.0,0.0002,2]
[388556463,1759240329459,-640.07,0.0002,2]
[388556464,1759240329468,-500.0,0.0002,2]
[388556465,1759240329478,-500.0,0.0002,2]
[388556466,1759240329487,-4283.19,0.0002,2]
[388556467,1759240329497,-500.0,0.0002,2]
[388556468,1759240329507,-3484.89,0.0002,2]
[388556469,1759240329517,-500.0,0.0002,2]
[388556470,1759240329526,-879.58,0.0002,2]
[388556471,1759240329536,-500.0,0.0002,2]
[388556472,1759240329546,-771.28,0.0002,2]
[388556473,1759240329557,-1514.61,0.0002,2]
[388556474,1759240329567,-500.0,0.0002,2]
[388556475,1759240329577,-642.61,0.0002,2]
[388556476,1759240329587,-1615.18,0.0002,2]
[388556477,1759240329597,-5250.86,0.0002,2]
[388556478,1759240329607,-554.09,0.0002,2]
[388556479,1759240329617,-4147.05,0.0002,2]
[388556480,1759240329626,-500.0,0.0002,2]
[388556481,1759240329635,-500.0,0.0002,2]
[388556482,1759240329645,-500.0,0.0002,2]
[388556483,1759240329655,-2880.85,0.0002,2]
[388556484,1759240329664,-500.0,0.0002,2]
[388556485,1759240329674,-1955.1,0.0002,2]
[388556486,1759240329684,-500.0,0.0002,2]
[388556487,1759240329694,-4642.17,0.0002,2]
[388556488,1759240329704,-1140.78,0.0002,2]
[388556489,1759240329714,-3000.73,0.0002,2]
[388556490,1759240329724,-296.86,0.0002,2]
[388556491,1759240329733,-500.0,0.0002,2]
[388556492,1759240329743,-500.0,0.0002,2]
[388556493,1759240329753,-909.25,0.0002,2]
[388556494,1759240329763,-1566.99,0.0002,2]
[388556495,1759240329773,-500.0,0.0002,2]
[388556496,1759240329782,-701.03,0.0002,2]
[388556497,1759240329792,-500.0,0.0002,2]
[388556498,1759240329802,-551.13,0.0002,2]
[388556499,1759240329813,-1273.89,0.0002,2]
[388556500,1759240329823,-614.69,0.0002,2]
[388556501,1759240329832,-500.0,0.0002,2]
[388556502,1759240329845,-5689.13,0.0002,2]
[388556503,1759240329855,-1076.21,0.0002,2]
[388556504,1759240329864,-884.18,0.0002,2]
[388556505,1759240329875,-500.0,0.0002,2]
[388556506,1759240329885,-3314.41,0.0002,2]
[388556507,1759240329894,-500.0,0.0002,2]
[388556508,1759240329903,-2180.29,0.0002,2]
[388556509,1759240329914,-3873.86,0.0002,2]
[388556510,1759240329923,-3687.17,0.0002,2]
[388556511,1759240329932,-913.68,0.0002,2]
[388556512,1759240329942,-500.0,0.0002,2]
[388556513,1759240329952,-659.75,0.0002,2]
[388556514,1759240329962,-4847.84,0.0002,2]
[388556515,1759240329971,-500.0,0.0002,2]
[388556516,1759240329981,-2846.88,0.0002,2]
[388556517,1759240329991,-3509.0,0.0002,2]
[388556518,1759240330001,-657.41,0.0002,2]
[388556519,1759240330010,-686.0,0.0002,2]
[388556520,1759240330020,-4580.15,0.0002,2]
[388556521,1759240330029,-543.49635016,0.0002,2]
[388556522,1759240330039,-500.0,0.0002,2]
[388556523,1759240330049,-2792.33,0.0002,2]
[388556524,1759240330058,-549.1,0.0002,2]
[388556525,1759240330070,-1789.31,0.0002,2]
[388556526,1759240330080,-500.0,0.0002,2]
[388556527,1759240330090,-684.53,0.0002,2]
[388556528,1759240330100,-500.0,0.0002,2]
[388556529,1759240330110,-500.0,0.0002,2]
[388556530,1759240330120,-500.0,0.0002,2]
[388556531,1759240330130,-500.0,0.0002,2]
[388556532,1759240330140,-751.52,0.0002,2]
[388556533,1759240330150,-4288.38,0.0002,2]
[388556534,1759240330160,-500.0,0.0002,2]
[388556535,1759240330170,-4326.28,0.0002,2]
[388556536,1759240330180,-560.42,0.0002,2]
[388556537,1759240330189,-2533.68,0.0002,2]
[388556538,1759240330199,-2033.24,0.0002,2]
[388556539,1759240330208,-500.0,0.0002,2]
[388556540,1759240330218,-3758.3,0.0002,2]
[388556541,1759240330227,-2934.06,0.0002,2]
[388556542,1759240330237,-650.69,0.0002,2]
[388556543,1759240330246,-500.0,0.0002,2]
[388556544,1759240330259,-500.0,0.0002,2]
[388556545,1759240330270,-500.0,0.0002,2]
[388556546,1759240330279,-1877.95,0.0002,2]
[388556547,1759240330289,-532.98,0.0002,2]
[388556548,1759240330299,-500.0,0.0002,2]
[388556549,1759240330310,-4173.34,0.0002,2]
[388556550,1759240330320,-2889.91,0.0002,2]
[388556551,1759240330331,-500.0,0.0002,2]
[388556552,1759240330342,-500.0,0.0002,2]
[388556553,1759240330352,-433.36224085,0.0002,2]
[388556554,1759240330362,-3353.46,0.0002,2]
[388556555,1759240330372,-517.4,0.0002,2]
[388556556,1759240330386,-500.0,0.0002,2]
[388556557,1759240330396,-500.0,0.0002,2]
[388556558,1759240330406,-3888.52,0.0002,2]
[388556559,1759240330417,-500.0,0.0002,2]
[388556560,1759240330427,-4877.04,0.0002,2]
[388556561,1759240330436,-405.37114869,0.0002,2]
[388556562,1759240330446,-500.0,0.0002,2]
[388556563,1759240330455,-500.0,0.0002,2]
[388556564,1759240330465,-500.0,0.0002,2]
[388556565,1759240330475,-500.0,0.0002,2]
[388556566,1759240330484,-3410.55,0.0002,2]
[388556567,1759240330494,-3031.79,0.0002,2]
[388556568,1759240330504,-2806.65,0.0002,2]
[388556569,1759240330513,-500.0,0.0002,2]
[388556570,1759240330523,-3132.31,0.0002,2]
[388556571,1759240330534,-500.0,0.0002,2]
[388556572,1759240330544,-2707.99,0.0002,2]
[388556573,1759240330554,-500.0,0.0002,2]
[388556574,1759240330563,-2707.99,0.0002,2]
[388556575,1759240330574,-2100.64,0.0002,2]
[388556576,1759240330583,-1688.46,0.0002,2]
[388556577,1759240330594,-3411.37,0.0002,2]
[388556578,1759240330603,-521.13,0.0002,2]
[388556579,1759240330613,-553.64987038,0.0002,2]
[388556580,1759240330622,-3419.82,0.0002,2]
[388556581,1759240330632,-500.0,0.0002,2]
[388556582,1759240330641,-551.58,0.0002,2]
[388556583,1759240330651,-4003.15,0.0002,2]
[388556584,1759240330661,-500.0,0.0002,2]
[388556585,1759240330671,-9394.178026,0.0002,2]
[388556586,1759240330680,-2415.06,0.0002,2]
[388556587,1759240330689,-500.0,0.0002,2]
[388556588,1759240330699,-405.942172,0.0002,2]
[388556589,1759240330708,-800.44,0.0002,2]
[388556590,1759240330717,-417.411714,0.0002,2]
[388556591,1759240330727,-724.36,0.0002,2]
[388556592,1759240330736,-2013.75,0.0002,2]
[388556593,1759240330746,-342.860755,0.0002,2]
[388556594,1759240330755,-2742.48,0.0002,2]
[388556595,1759240330764,-500.0,0.0002,2]
[388556596,1759240330773,-500.0,0.0002,2]
[388556597,1759240330783,-3714.03504,0.0002,2]
[388556598,1759240330792,-4139.96,0.0002,2]
[388556599,1759240330802,-500.0,0.0002,2]
[388556600,1759240330811,-8041.96422,0.0002,2]
[388556601,1759240330821,-2166.0,0.0002,2]
[388556602,1759240330832,-500.0,0.0002,2]
[388556603,1759240330843,-1899.13,0.0002,2]
[388556604,1759240330852,-500.0,0.0002,2]
[388556605,1759240330861,-1756.01,0.0002,2]
[388556606,1759240330871,-2473.07,0.0002,2]
[388556607,1759240330880,-820.82,0.0002,2]
[388556608,1759240330890,-403.48,0.0002,2]
[388556609,1759240330899,-731.53,0.0002,2]